bitfinex-derivatives/quotes_BTCF0:USTF0_20250922
["timestamp","ask_amount","ask_price","bid_price","bid_amount"]
[1758509658159,0.24003806,114350.0,114340.0,1.16576306]
[1758509658353,0.32742546,114350.0,114340.0,1.16576306]
[1758509658555,0.32742546,114350.0,114340.0,1.16676306]
[1758509659359,0.1093274,114350.0,114340.0,1.16676306]
[1758509659561,0.32742546,114350.0,114340.0,1.16676306]
[1758509659752,0.32742546,114350.0,114340.0,1.07928806]
[1758509659955,0.32742546,114350.0,114340.0,1.07916806]
[1758509660262,0.34049546,114350.0,114340.0,1.16656306]
[1758509660563,0.34049546,114350.0,114340.0,1.15298306]
[1758509661462,0.1223974,114350.0,114340.0,1.15298306]
[1758509661761,0.34049546,114350.0,114340.0,1.15298306]
[1758509663162,0.34049546,114350.0,114340.0,0.934885]
[1758509663356,0.34049546,114350.0,114340.0,1.15298306]
[1758509663962,0.32742546,114350.0,114340.0,1.16660306]
[1758509665866,0.34114546,114350.0,114340.0,1.07920806]
[1758509666864,0.48624546,114350.0,114340.0,1.07920806]
[1758509667164,0.34114546,114350.0,114340.0,1.07920806]
[1758509667366,0.34114546,114350.0,114340.0,1.06514806]
[1758509668356,0.1093274,114350.0,114340.0,1.07876806]
[1758509668561,0.32742546,114350.0,114340.0,1.07876806]
[1758509668761,0.32742546,114350.0,114340.0,1.16616306]
[1758509669264,0.32742546,114350.0,114340.0,0.948065]
[1758509669469,0.34114546,114350.0,114340.0,1.06502806]
[1758509669767,0.34114546,114350.0,114340.0,1.06498806]
[1758509670368,0.34114546,114350.0,114340.0,0.24094806]
[1758509670664,0.34114546,114350.0,114340.0,1.06498806]
[1758509670868,0.34114546,114350.0,114340.0,1.06494806]
[1758509671663,0.1230474,114350.0,114340.0,1.07856806]
[1758509671962,0.34114546,114350.0,114340.0,1.16596306]
[1758509672468,0.34114546,114350.0,114340.0,1.07848806]
[1758509673771,0.34114546,114350.0,114340.0,0.02285]
[1758509674070,0.34114546,114350.0,114340.0,1.06486806]
[1758509675164,0.1230474,114350.0,114340.0,1.06486806]
[1758509675370,0.34114546,114350.0,114340.0,1.06486806]
[1758509675570,0.34114546,114350.0,114340.0,1.15226306]
[1758509676269,0.34114546,114350.0,114340.0,1.16588306]
[1758509676572,0.34114546,114350.0,114340.0,0.947785]
[1758509676778,0.34114546,114350.0,114340.0,1.16588306]
[1758509677262,0.34114546,114350.0,114340.0,1.07848806]
[1758509677570,0.34114546,114350.0,114340.0,0.03647]
[1758509677773,0.34114546,114350.0,114340.0,0.84657]
[1758509677972,0.34114546,114350.0,114340.0,1.06466806]
[1758509678470,0.34114546,114350.0,114340.0,0.02285]
[1758509678772,0.55924352,114350.0,114340.0,0.02285]
[1758509678972,0.55924352,114350.0,114340.0,0.02245]
[1758509679172,0.55924352,114350.0,114340.0,0.02285]
[1758509682075,0.34114546,114350.0,114340.0,0.02285]
[1758509683975,0.83237422,114350.0,114340.0,0.02283]
[1758509684276,0.83237422,114350.0,114340.0,0.0014]
[1758509685175,0.3961781,114350.0,114340.0,0.02323]
[1758509685475,0.96583123,114350.0,114340.0,0.02323]
[1758509686572,0.94270053,114350.0,114340.0,0.02323]
[1758509687076,1.08780053,114350.0,114340.0,0.02323]
[1758509688575,1.08780053,114350.0,114340.0,0.0014]
[1758509690877,1.08780053,114350.0,114340.0,0.001]
[1758509691879,1.11123944,114350.0,114340.0,0.0014]
[1758509692181,1.08780053,114350.0,114340.0,0.0014]
[1758509693776,1.08780053,114350.0,114330.0,0.0008]
[1758509693777,0.087395,114340.0,114330.0,0.0008]
[1758509693982,0.55946112,114340.0,114330.0,0.02263]
[1758509695183,0.55946112,114340.0,114330.0,0.0048]
[1758509695477,0.55946112,114340.0,114330.0,0.006]
[1758509695684,1.38210112,114340.0,114330.0,0.006]
[1758509695884,0.55946112,114340.0,114330.0,0.006]
[1758509696085,1.60015918,114340.0,114330.0,0.0064]
[1758509696286,1.17265918,114340.0,114330.0,0.0064]
[1758509696482,1.99525918,114340.0,114330.0,0.006]
[1758509696682,1.99525918,114340.0,114330.0,0.0064]
[1758509696683,1.17265918,114340.0,114330.0,0.0064]
[1758509696878,1.99525918,114340.0,114330.0,0.0064]
[1758509698283,1.17265918,114340.0,114330.0,0.0064]
[1758509698475,1.77716112,114340.0,114330.0,0.02889]
[1758509698676,1.79462791,114340.0,114330.0,0.02889]
[1758509698871,1.79462791,114340.0,114330.0,0.02849]
[1758509699079,1.79462791,114340.0,114330.0,0.0064]
[1758509699582,0.97202791,114340.0,114330.0,0.0064]
[1758509699779,1.79450791,114340.0,114330.0,0.0064]
[1758509699985,1.79442791,114340.0,114330.0,0.0064]
[1758509700284,0.53583179,114340.0,114330.0,0.02889]
[1758509700588,1.79442791,114340.0,114330.0,0.02889]
[1758509700778,0.97202791,114340.0,114330.0,0.02889]
[1758509700978,1.79438791,114340.0,114330.0,0.02889]
[1758509701289,1.79438791,114340.0,114330.0,0.0064]
[1758509702584,0.97202791,114340.0,114330.0,0.02889]
[1758509702785,1.79430791,114340.0,114330.0,0.0064]
[1758509703284,1.79430791,114340.0,114330.0,0.02889]
[1758509703587,0.97202791,114340.0,114330.0,0.02889]
[1758509703783,1.79426791,114340.0,114330.0,0.02889]
[1758509704386,0.97202791,114340.0,114330.0,0.02889]
[1758509704586,1.79422791,114340.0,114330.0,0.02889]
[1758509705086,1.79422791,114340.0,114330.0,0.0064]
[1758509705887,2.01232597,114340.0,114330.0,0.0064]
[1758509706586,1.57624572,114340.0,114330.0,0.0064]
[1758509706788,0.53583179,114340.0,114330.0,0.02889]
[1758509707084,1.32612572,114340.0,114330.0,0.02889]
[1758509707484,1.32612572,114340.0,114330.0,0.0064]
[1758509707677,1.54433965,114340.0,114330.0,0.0064]
[1758509707880,1.56801082,114340.0,114330.0,0.006]
[1758509708088,1.56801082,114340.0,114330.0,0.0064]
[1758509708777,0.1232727,114330.0,114320.0,0.02329]
[1758509708978,0.55970056,114330.0,114320.0,0.02329]
[1758509709177,0.55970056,114330.0,114320.0,0.0008]
[1758509709784,0.0874239,114310.0,114300.0,0.02249]
[1758509709989,0.34150783,114310.0,114300.0,0.02249]
[1758509710292,0.34150783,114310.0,114300.0,0.02289]
[1758509710681,0.33650783,114310.0,114300.0,0.02289]
[1758509710881,0.33350783,114310.0,114300.0,0.02289]
[1758509711381,0.33350783,114310.0,114300.0,0.03489]
[1758509711583,0.33350783,114310.0,114300.0,0.1223156]
[1758509711783,0.34150183,114310.0,114300.0,0.1273156]
[1758509711988,0.34150183,114310.0,114300.0,0.1409356]
[1758509712591,0.34150183,114310.0,114300.0,0.05351]
[1758509712792,0.1232879,114310.0,114300.0,0.05351]
[1758509712990,0.34150183,114310.0,114300.0,0.05351]
[1758509713291,0.34150183,114310.0,114300.0,0.03989]
[1758509713592,0.41006721,114310.0,114300.0,0.03989]
[1758509715089,0.41006721,114310.0,114300.0,0.1409356]
[1758509715391,0.07768227,114310.0,114300.0,0.60914953]
[1758509715583,0.1001471,114320.0,114310.0,0.1216879]
[1758509715584,0.1087971,114320.0,114310.0,0.1216879]
[1758509716985,0.32701103,114320.0,114310.0,0.1276879]
[1758509717192,0.32701103,114320.0,114310.0,0.1306879]
[1758509718107,0.1087971,114320.0,114310.0,0.34890183]
[1758509718394,0.1087971,114320.0,114310.0,0.59890183]
[1758509718395,0.07803524,114320.0,114310.0,0.59890183]
[1758509718586,0.13924288,114330.0,114320.0,0.1216003]
[1758509718782,0.12651288,114330.0,114320.0,0.1216003]
[1758509719493,0.34472681,114330.0,114320.0,0.1216003]
[1758509720197,0.34472681,114330.0,114320.0,0.1236003]
[1758509720396,0.34472681,114330.0,114320.0,0.1256003]
[1758509721088,0.35363659,114330.0,114320.0,0.1129203]
[1758509721297,0.36715659,114330.0,114320.0,0.1129203]
[1758509721892,0.43680778,114330.0,114320.0,0.1129203]
[1758509723095,0.34940068,114330.0,114320.0,0.1256003]
[1758509723592,0.33588068,114330.0,114320.0,0.1256003]
[1758509723784,0.09628675,114330.0,114320.0,0.34381423]
[1758509723989,0.10063097,114330.0,114320.0,0.59381423]
[1758509724192,0.07856097,114330.0,114320.0,0.59381423]
[1758509724387,0.13966339,114340.0,114330.0,0.1086126]
[1758509724592,0.13966339,114340.0,114330.0,0.1194726]
[1758509725403,0.34119593,114350.0,114340.0,0.108605]
[1758509725592,0.41093282,114350.0,114340.0,0.108605]
[1758509726396,0.43441374,114350.0,114340.0,0.108605]
[1758509726699,0.41093282,114350.0,114340.0,0.108605]
[1758509727201,0.41493282,114350.0,114340.0,0.108605]
[1758509727696,0.41593282,114350.0,114340.0,0.108605]
[1758509728594,0.42497191,114350.0,114340.0,0.108605]
[1758509730905,0.42497191,114350.0,114340.0,0.02121]
[1758509731095,0.4484362,114350.0,114340.0,0.02121]
[1758509731295,0.42497191,114350.0,114340.0,0.02121]
[1758509733405,0.122955,114340.0,114330.0,0.1086118]
[1758509733600,0.34116893,114340.0,114330.0,0.1086118]
[1758509734505,0.122955,114340.0,114330.0,0.1086118]
[1758509734807,0.34216893,114340.0,114330.0,0.1096118]
[1758509741308,0.123955,114340.0,114330.0,0.1096118]
[1758509741506,0.34216893,114340.0,114330.0,0.1096118]
[1758509742704,0.34216893,114340.0,114330.0,0.02221]
[1758509743409,0.35957058,114340.0,114330.0,0.02261]
[1758509744706,0.35957058,114340.0,114330.0,0.0014]
[1758509745011,0.35957058,114340.0,114330.0,0.001]
[1758509745610,0.35957058,114340.0,114330.0,0.0014]
[1758509745810,0.35957058,114340.0,114330.0,0.02261]
[1758509746811,0.35957058,114340.0,114330.0,0.0014]
[1758509747612,0.35957058,114340.0,114330.0,0.02261]
[1758509749103,0.35957058,114340.0,114330.0,0.0014]
[1758509749507,0.60957058,114340.0,114330.0,0.001]
[1758509749816,0.60957058,114340.0,114330.0,0.0014]
[1758509750616,0.59216893,114340.0,114330.0,0.0014]
[1758509752019,0.59216893,114340.0,114330.0,0.001]
[1758509752324,1.41368893,114340.0,114330.0,0.02261]
[1758509752621,0.59216893,114340.0,114330.0,0.0014]
[1758509754918,0.59216893,114340.0,114330.0,0.001]
[1758509755111,0.59216893,114340.0,114330.0,0.0014]
[1758509755815,0.03538,114310.0,114300.0,0.21091563]
[1758509756014,0.34101183,114310.0,114300.0,0.13031173]
[1758509756215,0.1227979,114310.0,114300.0,0.13071173]
[1758509756821,0.1227979,114310.0,114300.0,0.13031173]
[1758509757118,0.1227979,114310.0,114300.0,0.13531173]
[1758509757319,0.1227979,114310.0,114300.0,0.14471173]
[1758509757520,0.19244729,114310.0,114300.0,0.14471173]
[1758509758819,0.19244729,114310.0,114300.0,0.1240556]
[1758509759220,0.19244729,114310.0,114300.0,0.1210556]
[1758509759523,0.19244729,114310.0,114300.0,0.1140556]
[1758509759750,0.17979729,114310.0,114300.0,0.1274456]
[1758509759923,0.19244729,114310.0,114300.0,0.1140556]
[1758509760622,0.19244729,114310.0,114300.0,0.1274456]
[1758509760817,0.06964939,114310.0,114300.0,0.34565953]
[1758509761017,0.1101449,114320.0,114310.0,0.1226479]
[1758509761324,0.1227949,114320.0,114310.0,0.1226479]
[1758509761713,0.1101449,114320.0,114310.0,0.34086183]
[1758509762119,0.1101449,114320.0,114310.0,0.1226479]
[1758509762725,0.1227949,114320.0,114310.0,0.1226479]
[1758509762925,0.1237949,114320.0,114310.0,0.1226479]
[1758509764225,0.1237949,114320.0,114310.0,0.34086183]
[1758509767926,0.1237949,114320.0,114310.0,0.1226479]
[1758509768523,0.34198763,114320.0,114310.0,0.34084063]
[1758509769422,0.1237949,114320.0,114310.0,0.34084063]
[1758509769613,0.32933763,114320.0,114310.0,0.34084063]
[1758509770125,0.34285763,114320.0,114310.0,0.34084063]
[1758509773730,0.34285763,114320.0,114310.0,0.25342273]
[1758509774930,0.34285763,114320.0,114310.0,0.02223]
[1758509775133,0.56105036,114320.0,114310.0,0.02223]
[1758509775326,0.0874179,114310.0,114300.0,0.0004]
[1758509775532,0.34162063,114310.0,114300.0,1.13717833]
[1758509775831,0.34162063,114310.0,114300.0,1.04975273]
[1758509776035,0.41282947,114310.0,114300.0,1.15025833]
[1758509776429,0.41282947,114310.0,114300.0,1.15425833]
[1758509776630,0.19463674,114310.0,114300.0,1.15425833]
[1758509776827,0.41282947,114310.0,114300.0,1.15425833]
[1758509777032,0.41282947,114310.0,114300.0,0.9360656]
[1758509777236,0.41282947,114310.0,114300.0,0.84864]
[1758509777436,0.41282947,114310.0,114300.0,1.06683273]
[1758509778831,0.41282947,114310.0,114300.0,1.15425833]
[1758509780639,0.41282947,114310.0,114300.0,0.02752]
[1758509780841,0.41282947,114310.0,114300.0,0.8486]
[1758509781240,0.41282947,114310.0,114300.0,1.15421833]
[1758509784033,0.41282947,114310.0,114300.0,0.9360256]
[1758509784237,0.41282947,114310.0,114300.0,1.15421833]
[1758509785744,0.19463674,114310.0,114300.0,1.15421833]
[1758509785953,0.19463674,114310.0,114300.0,1.38541106]
[1758509786150,0.41282947,114310.0,114300.0,1.38541106]
[1758509786454,0.41282947,114310.0,114300.0,1.16721833]
[1758509788554,0.41282947,114310.0,114300.0,1.07979273]
[1758509789848,0.41282947,114310.0,114300.0,0.25871273]
[1758509790054,0.41282947,114310.0,114300.0,1.06651273]
[1758509790456,0.41282947,114310.0,114300.0,1.15393823]
[1758509793761,0.41282947,114310.0,114300.0,0.9357455]
[1758509793957,0.19463674,114310.0,114300.0,1.15393823]
[1758509794258,0.41282947,114310.0,114300.0,1.16693823]
[1758509797856,0.41282947,114310.0,114300.0,0.1279455]
[1758509798158,0.41282947,114310.0,114300.0,1.16669823]
[1758509798546,0.41282947,114310.0,114300.0,0.9355055]
[1758509798753,0.41282947,114310.0,114300.0,1.15369823]
[1758509800354,0.19463674,114310.0,114300.0,1.16669823]
[1758509800757,0.41282947,114310.0,114300.0,1.16669823]
[1758509801264,0.39930947,114310.0,114300.0,1.16669823]
[1758509801453,0.39930947,114310.0,114300.0,1.38489096]
[1758509802362,0.09369884,114310.0,114300.0,1.38489096]
[1758509802663,0.18111674,114310.0,114300.0,1.38489096]
[1758509802852,0.07120884,114310.0,114300.0,1.63489096]
[1758509803158,0.32676643,114320.0,114310.0,0.03441]
[1758509803458,0.32676643,114320.0,114310.0,0.34002053]
[1758509804758,0.32776643,114320.0,114310.0,1.16042053]
[1758509805752,0.32776643,114320.0,114310.0,1.16034053]
[1758509808064,0.1095737,114320.0,114310.0,1.16034053]
[1758509808261,0.30660643,114320.0,114310.0,1.16034053]
[1758509808661,0.0884137,114320.0,114310.0,1.16034053]
[1758509809658,0.001,114320.0,114310.0,1.16034053]
[1758509810567,0.001,114320.0,114310.0,0.55821326]
[1758509810759,0.001,114320.0,114310.0,1.16018053]
[1758509812468,0.001,114320.0,114310.0,0.34002053]
[1758509812665,0.001,114320.0,114310.0,1.16014053]
[1758509813466,0.001,114320.0,114310.0,0.34002053]
[1758509813766,0.02216,114320.0,114310.0,1.16006053]
[1758509815273,0.001,114320.0,114310.0,1.16006053]
[1758509816270,0.001,114320.0,114310.0,1.15998053]
[1758509816670,0.001,114320.0,114310.0,1.15994053]
[1758509817773,0.001,114320.0,114310.0,0.9417478]
[1758509818067,0.001,114320.0,114310.0,1.15994053]
[1758509823581,0.001,114320.0,114310.0,1.37813326]
[1758509823880,0.001,114320.0,114310.0,1.45674226]
[1758509824081,0.001,114320.0,114310.0,1.70674226]
[1758509824581,0.001,114320.0,114310.0,1.62813326]
[1758509824875,0.001,114320.0,114310.0,0.91789679]
[1758509825079,0.001,114320.0,114310.0,1.73749679]
[1758509825278,0.001,114320.0,114310.0,1.70637471]
[1758509825880,0.001,114320.0,114310.0,0.88681471]
[1758509826078,0.001,114320.0,114310.0,1.70637471]
[1758509826981,0.001,114320.0,114310.0,1.70633471]
[1758509827178,0.001,114320.0,114310.0,1.62773326]
[1758509827580,0.001,114320.0,114310.0,1.62765326]
[1758509828578,0.001,114320.0,114310.0,0.1218278]
[1758509828777,0.1111203,114320.0,114310.0,0.1218278]
[1758509829076,0.34232726,114320.0,114310.0,0.9416278]
[1758509829280,0.34232726,114320.0,114310.0,0.9282378]
[1758509829481,0.1241903,114320.0,114310.0,0.9278378]
[1758509829681,0.3741903,114320.0,114310.0,0.9282378]
[1758509829882,0.3741903,114320.0,114310.0,0.9277978]
[1758509830482,0.3741903,114320.0,114310.0,0.9281978]
[1758509833290,0.28678,114320.0,114310.0,0.9281978]
[1758509833585,0.3741903,114320.0,114310.0,0.9281978]
[1758509833979,0.3741903,114320.0,114310.0,0.9415878]
[1758509834377,0.27371,114320.0,114310.0,0.9415878]
[1758509834578,0.27371,114320.0,114310.0,1.15972476]
[1758509835487,0.3611203,114320.0,114310.0,1.15972476]
[1758509836288,0.3745503,114320.0,114310.0,0.9415878]
[1758509837183,0.3745503,114320.0,114310.0,0.1088378]
[1758509837387,0.3745503,114320.0,114310.0,0.9278778]
[1758509837587,0.59268726,114320.0,114310.0,0.9278778]
[1758509839888,0.34268726,114320.0,114310.0,0.02142]
[1758509840093,0.34268726,114320.0,114310.0,0.84042]
[1758509840285,0.59268726,114320.0,114310.0,0.02142]
[1758509840485,0.59268726,114320.0,114310.0,0.83994]
[1758509840686,0.59268726,114320.0,114310.0,0.84034]
[1758509844787,0.59268726,114320.0,114310.0,0.9277579]
[1758509845286,0.59268726,114320.0,114310.0,0.84034]
[1758509846888,0.59268726,114320.0,114310.0,0.83994]
[1758509847089,0.59268726,114320.0,114310.0,0.84034]
[1758509848095,0.59268726,114320.0,114310.0,0.9277579]
[1758509848793,0.3745503,114320.0,114310.0,0.9277579]
[1758509848998,0.59268726,114320.0,114310.0,0.9277579]
[1758509852293,0.73778726,114320.0,114310.0,0.9277579]
[1758509852796,0.5196503,114320.0,114310.0,0.9277579]
[1758509853002,0.73778726,114320.0,114310.0,0.9409979]
[1758509853892,0.5196503,114320.0,114310.0,0.9277579]
[1758509854091,0.73778726,114320.0,114310.0,0.9277579]
[1758509854302,0.73778726,114320.0,114310.0,0.84034]
[1758509855193,0.5196503,114320.0,114310.0,0.84034]
[1758509855506,0.73778726,114320.0,114310.0,0.9277579]
[1758509856002,0.73778726,114320.0,114310.0,0.84034]
[1758509856494,0.100701,114300.0,114290.0,0.81828]
[1758509856699,0.34211796,114300.0,114290.0,0.76376336]
[1758509857301,0.34211796,114300.0,114290.0,0.85119656]
[1758509857502,0.34211796,114300.0,114290.0,0.85159656]
[1758509857802,0.34211796,114300.0,114290.0,0.85759656]
[1758509857999,0.34211796,114300.0,114290.0,0.86059656]
[1758509858301,0.41372466,114300.0,114290.0,0.86059656]
[1758509858705,0.41372466,114300.0,114290.0,0.77316336]
[1758509861303,0.41372466,114300.0,114290.0,0.86059656]
[1758509861801,0.41372466,114300.0,114290.0,0.0316]
[1758509862106,0.41372466,114300.0,114290.0,0.84968]
[1758509862405,0.41372466,114300.0,114290.0,0.84928]
[1758509862600,0.41372466,114300.0,114290.0,0.84968]
[1758509864104,0.64936745,114300.0,114290.0,0.0094]
[1758509866001,0.67359561,114300.0,114290.0,0.0094]
[1758509866203,0.43123049,114300.0,114290.0,0.0316]
[1758509866504,0.43123049,114300.0,114290.0,0.1190332]
[1758509866815,0.21309353,114300.0,114290.0,0.1190332]
[1758509867103,0.21309353,114300.0,114290.0,0.33717016]
[1758509867709,0.08911253,114300.0,114290.0,0.60031016]
[1758509870310,0.0716067,114300.0,114290.0,0.60031016]
[1758509870508,0.01343,114320.0,114310.0,0.087418]
[1758509870708,0.03635,114330.0,114320.0,0.1096103]
[1758509871006,0.03635,114330.0,114320.0,0.32774726]
[1758509871314,0.03635,114330.0,114320.0,0.9273303]
[1758509871914,0.19633408,114330.0,114320.0,0.9273303]
[1758509872108,0.1277526,114330.0,114320.0,0.9273303]
[1758509872507,0.04135,114330.0,114320.0,1.14538726]
[1758509872711,0.005,114330.0,114320.0,1.14538726]
[1758509873410,0.04155,114330.0,114320.0,1.14538726]
[1758509873615,0.04155,114330.0,114320.0,0.9272503]
[1758509874014,0.04155,114330.0,114320.0,0.1096103]
[1758509874216,0.04155,114330.0,114320.0,0.9272103]
[1758509876109,0.41776156,114330.0,114320.0,0.9270503]
[1758509876415,0.34708956,114330.0,114320.0,0.1096103]
[1758509876616,0.34708956,114330.0,114320.0,0.9270503]
[1758509877212,0.1289526,114330.0,114320.0,0.9270503]
[1758509879212,0.1289526,114330.0,114320.0,0.9269303]
[1758509879419,0.1289526,114330.0,114320.0,0.9268903]
[1758509879608,0.1289526,114330.0,114320.0,0.1096103]
[1758509879810,0.1289526,114330.0,114320.0,0.9268903]
[1758509880117,0.04155,114330.0,114320.0,1.14502726]
[1758509880314,0.11184449,114330.0,114320.0,1.14502726]
[1758509880508,0.1289526,114330.0,114320.0,1.14498726]
[1758509881010,0.04155,114330.0,114320.0,1.14498726]
[1758509881319,0.005,114330.0,114320.0,1.14498726]
[1758509881518,0.005,114330.0,114320.0,0.32774726]
[1758509881709,0.005,114330.0,114320.0,0.9268103]
[1758509881909,0.005,114330.0,114320.0,1.14494726]
[1758509882310,0.1287426,114330.0,114320.0,1.14490726]
[1758509882510,0.1287426,114330.0,114320.0,0.1096103]
[1758509882819,0.1287426,114330.0,114320.0,0.9267303]
[1758509883322,0.1287426,114330.0,114320.0,0.1096103]
[1758509883818,0.34687956,114330.0,114320.0,0.83928]
[1758509884019,0.34687956,114330.0,114320.0,0.9266903]
[1758509884613,0.41511146,114330.0,114320.0,0.9266903]
[1758509884812,0.41511146,114330.0,114320.0,0.83928]
[1758509885314,0.41511146,114330.0,114320.0,0.0222]
[1758509885512,0.41511146,114330.0,114320.0,0.0226]
[1758509885914,0.1237503,114320.0,114310.0,0.84005]
[1758509886228,0.34188726,114320.0,114310.0,0.1112679]
[1758509886520,0.34188726,114320.0,114310.0,0.9274279]
[1758509886714,0.34188726,114320.0,114310.0,0.9278279]
[1758509886927,0.34188726,114320.0,114310.0,0.1108679]
[1758509887221,0.34188726,114320.0,114310.0,0.84041]
[1758509887719,0.34188726,114320.0,114310.0,0.02345]
[1758509888027,0.34288726,114320.0,114310.0,0.02345]
[1758509888321,0.59288726,114320.0,114310.0,0.02345]
[1758509888515,0.0874179,114310.0,114300.0,0.9273907]
[1758509888710,0.34189486,114310.0,114300.0,0.9281907]
[1758509888916,0.34189486,114310.0,114300.0,0.02305]
[1758509889116,0.34189486,114310.0,114300.0,0.02345]
[1758509889620,0.59189486,114310.0,114300.0,0.0004]
[1758509889923,0.59189486,114310.0,114300.0,0.02305]
[1758509890125,0.59189486,114310.0,114300.0,0.02345]
[1758509890624,0.59204471,114310.0,114300.0,0.02545]
[1758509891021,0.59204471,114310.0,114300.0,0.02745]
[1758509891826,0.59204471,114310.0,114300.0,0.1148756]
[1758509892021,0.59204471,114310.0,114300.0,0.33316241]
[1758509892227,0.34204471,114310.0,114300.0,0.33316241]
[1758509894128,0.34204471,114310.0,114300.0,0.24573681]
[1758509895030,0.34204471,114310.0,114300.0,0.02745]
[1758509897032,0.34204471,114310.0,114300.0,0.0044]
[1758509897226,0.34204471,114310.0,114300.0,0.02569]
[1758509898724,0.34204471,114310.0,114300.0,0.0044]
[1758509901537,0.48714471,114310.0,114300.0,0.0044]
[1758509904938,0.48714471,114310.0,114300.0,0.02585]
[1758509905435,0.48714471,114310.0,114300.0,0.0044]
[1758509906128,0.70543152,114310.0,114300.0,0.0024]
[1758509906323,0.48814471,114310.0,114300.0,0.0024]
[1758509906531,0.49214471,114310.0,114300.0,0.0004]
[1758509906938,0.48814471,114310.0,114300.0,0.0004]
[1758509907131,0.49614471,114310.0,114300.0,0.0004]
[1758509908037,0.49714471,114310.0,114300.0,0.0004]
[1758509908233,0.49714471,114310.0,114300.0,0.02185]
[1758509908431,0.49714471,114310.0,114300.0,0.1092756]
[1758509909534,0.2788579,114310.0,114300.0,0.1092756]
[1758509909738,0.49714471,114310.0,114300.0,0.02185]
[1758509910941,0.2788579,114310.0,114300.0,0.02185]
[1758509911241,0.49714471,114310.0,114300.0,0.02185]
[1758509912334,0.49714471,114310.0,114300.0,0.32756241]
[1758509916840,0.35204471,114310.0,114300.0,0.32756241]
[1758509919135,0.1202379,114310.0,114300.0,0.54584922]
[1758509919534,0.1335279,114310.0,114300.0,0.54584922]
[1758509920241,0.35181471,114310.0,114300.0,0.54584922]
[1758509920739,0.35181471,114310.0,114300.0,0.32756241]
[1758509921143,0.34581471,114310.0,114300.0,0.54584922]
[1758509921546,0.34581471,114310.0,114300.0,0.32756241]
[1758509922439,0.34581471,114310.0,114300.0,0.1092756]
[1758509922643,0.34581471,114310.0,114300.0,0.32756241]
[1758509922838,0.34181471,114310.0,114300.0,0.32756241]
[1758509923046,0.34281471,114310.0,114300.0,0.32756241]
[1758509924244,0.25539681,114310.0,114300.0,0.1092756]
[1758509924440,0.25539681,114310.0,114300.0,0.54584922]
[1758509924638,0.03711,114310.0,114300.0,0.54584922]
[1758509924839,0.25539681,114310.0,114300.0,0.54584922]
[1758509926538,0.03711,114310.0,114300.0,0.54584922]
[1758509926939,0.03711,114310.0,114300.0,1.36136922]
[1758509927735,0.25539681,114310.0,114300.0,1.36136922]
[1758509927941,0.25539681,114310.0,114300.0,0.32756241]
[1758509928444,0.25539681,114310.0,114300.0,1.14300241]
[1758509929548,0.25539681,114310.0,114300.0,1.14296241]
[1758509931648,0.25539681,114310.0,114300.0,0.32756241]
[1758509931836,0.25539681,114310.0,114300.0,1.14284241]
[1758509932042,0.34281471,114310.0,114300.0,1.14284241]
[1758509932653,0.34281471,114310.0,114300.0,0.32756241]
[1758509932948,0.34281471,114310.0,114300.0,1.14284241]
[1758509933542,0.34281471,114310.0,114300.0,0.32756241]
[1758509933746,0.34281471,114310.0,114300.0,1.14276241]
[1758509936156,0.34281471,114310.0,114300.0,1.14272241]
[1758509937055,0.1245279,114310.0,114300.0,0.9244356]
[1758509937255,0.34281471,114310.0,114300.0,1.14272241]
[1758509938756,0.1245279,114310.0,114300.0,1.14272241]
[1758509939055,0.34281471,114310.0,114300.0,1.14272241]
[1758509941356,0.34281471,114310.0,114300.0,0.9244356]
[1758509941551,0.34281471,114310.0,114300.0,1.14244241]
[1758509943158,0.1245279,114310.0,114300.0,1.14244241]
[1758509943660,0.34281471,114310.0,114300.0,1.14244241]
[1758509944558,0.34281471,114310.0,114300.0,0.32756241]
[1758509944760,0.34281471,114310.0,114300.0,1.14232241]
[1758509947258,0.34281471,114310.0,114300.0,0.32756241]
[1758509947448,0.36718018,114310.0,114300.0,0.9238756]
[1758509947649,0.36718018,114310.0,114300.0,0.1092756]
[1758509947858,0.36718018,114310.0,114300.0,0.9234756]
[1758509948255,0.34281471,114310.0,114300.0,0.9238756]
[1758509948960,0.1245279,114310.0,114300.0,0.9238756]
[1758509949260,0.34281471,114310.0,114300.0,0.9238756]
[1758509949761,0.36718545,114310.0,114300.0,0.9238756]
[1758509950562,0.36716209,114310.0,114300.0,0.9238756]
[1758509950857,0.34279135,114310.0,114300.0,0.9238756]
[1758509951455,0.36716299,114310.0,114300.0,0.9238756]
[1758509957463,0.14889954,114310.0,114300.0,0.9238756]
[1758509957666,0.36716299,114310.0,114300.0,0.9238756]
[1758509962772,0.34279135,114310.0,114300.0,0.9238756]
[1758509964675,0.25537345,114310.0,114300.0,0.9238756]
[1758509965071,0.34279135,114310.0,114300.0,0.9238756]
[1758509966574,0.1245279,114310.0,114300.0,0.9238756]
[1758509966774,0.34279135,114310.0,114300.0,0.9238756]
[1758509966969,0.1245279,114310.0,114300.0,0.9238756]
[1758509967177,0.1245279,114310.0,114300.0,1.14213905]
[1758509968079,0.1245279,114310.0,114300.0,0.32753905]
[1758509968576,0.1245279,114310.0,114300.0,1.14117905]
[1758509969378,0.1245279,114310.0,114300.0,0.9229156]
[1758509970077,0.34279135,114310.0,114300.0,0.9229156]
[1758509971577,0.1245279,114310.0,114300.0,0.9229156]
[1758509971875,0.34279135,114310.0,114300.0,0.1092756]
[1758509972265,0.34279135,114310.0,114300.0,0.9227556]
[1758509972975,0.27469135,114310.0,114300.0,0.9227556]
[1758509973176,0.31127135,114310.0,114300.0,0.9227556]
[1758509974980,0.31127135,114310.0,114300.0,0.9226756]
[1758509975775,0.31127135,114310.0,114300.0,0.02185]
[1758509976074,0.33566234,114310.0,114300.0,0.02185]
[1758509976876,0.33565575,114310.0,114300.0,0.02185]
[1758509977078,0.31127135,114310.0,114300.0,0.02185]
[1758509978078,0.11739264,114310.0,114300.0,0.02185]
[1758509978282,0.33565609,114310.0,114300.0,0.02185]
[1758509978775,0.33565609,114310.0,114300.0,0.0004]
[1758509978976,0.31127135,114310.0,114300.0,0.0004]
[1758509979381,0.33565599,114310.0,114300.0,0.0004]
[1758509979683,0.31127135,114310.0,114300.0,0.0004]
[1758509980086,0.31127135,114310.0,114300.0,0.02299]
[1758509981785,0.33565554,114310.0,114300.0,0.02299]
[1758509982682,0.33565554,114310.0,114300.0,0.0004]
[1758509982878,0.1010756,114300.0,114290.0,0.9007884]
[1758509983186,0.34226905,114300.0,114290.0,0.9233784]
[1758509983683,0.34226905,114300.0,114290.0,0.9241784]
[1758509984081,0.34226905,114300.0,114290.0,0.9261784]
[1758509984282,0.34226905,114300.0,114290.0,0.9291784]
[1758509985193,0.36014742,114300.0,114290.0,0.02839]
[1758509985494,0.36014742,114300.0,114290.0,0.02759]